fUSD/lending_fUSD_20260630
["ID","MTS","AMOUNT","RATE_DAILY","PERIOD"]
[426719345,1782760246000,-967.53924313,0.0002682,2]
[426719331,1782760246000,-644.80421952,0.00026408,2]
[426719322,1782760246000,-403.49736433,0.00026408,2]
[426719324,1782760246000,-684.89353296,0.00026408,2]
[426719323,1782760246000,-642.75827248,0.00026408,2]
[426719326,1782760246000,-174.19192964,0.00026408,2]
[426719328,1782760246000,-740.4288634,0.00026408,2]
[426719374,1782760246000,-1500.0,0.00027397,2]
[426719330,1782760246000,-208.93299555,0.00026408,2]
[426719329,1782760246000,-703.18029277,0.00026408,2]
[426719332,1782760246000,-653.22520011,0.00026408,2]
[426719333,1782760246000,-525.34272364,0.00026408,2]
[426719334,1782760246000,-549.05433388,0.00026408,2]
[426719335,1782760246000,-871.93185684,0.00026408,2]
[426719337,1782760246000,-515.5525053,0.00026408,2]
[426719336,1782760246000,-615.57229073,0.00026408,2]
[426719338,1782760246000,-692.05584569,0.00026408,2]
[426719341,1782760246000,-17971.0423117,0.000268,2]
[426719340,1782760246000,-151.83365069,0.00026548,2]
[426719342,1782760246000,-880.7066508,0.0002682,2]
[426719339,1782760246000,-208.0,0.00026521,2]
[426719344,1782760246000,-901.45099988,0.0002682,2]
[426719348,1782760246000,-933.27332919,0.0002682,2]
[426719347,1782760246000,-877.37880032,0.0002682,2]
[426719349,1782760246000,-783.2054842,0.0002682,2]
[426719375,1782760246000,-3098.76,0.00027397,2]
[426719327,1782760246000,-458.29762999,0.00026408,2]
[426719377,1782760246000,-300.0,0.00027397,2]
[426719404,1782760246000,-939.84658103,0.00027658,2]
[426719405,1782760246000,-1059.35037634,0.00027679,2]
[426719408,1782760246000,-536.02494109,0.00027715,2]
[426719418,1782760246000,-1174.0,0.00027973,10]
[426719409,1782760246000,-312.03666516,0.00027716,2]
[426719419,1782760246000,-2000.0,0.00028,7]
[426719407,1782760246000,-500.0,0.00027699,2]
[426719411,1782760246000,-151.83365069,0.00027734,2]
[426719415,1782760246000,-10027.1879771,0.0002786,2]
[426719416,1782760246000,-1929.84,0.00027885,7]
[426719417,1782760246000,-993.40796667,0.00027956,2]
[426719406,1782760246000,-1021.90873928,0.00027679,2]
[426719413,1782760246000,-920.28074131,0.00027809,2]
[426719420,1782760246000,-200.0,0.0002806,2]
[426719421,1782760246000,-151.83365069,0.0002813,2]
[426719427,1782760246000,-152.0,0.00028382,3]
[426719426,1782760246000,-197.7,0.00028381,19]
[426719422,1782760246000,-234.0,0.00028213,10]
[426719429,1782760246000,-1632.96,0.000284,7]
[426719423,1782760246000,-500.0,0.00028262,3]
[426719424,1782760246000,-500.0,0.00028356,2]
[426719425,1782760246000,-1081.155,0.00028381,19]
[426719428,1782760246000,-188.51696915,0.00028392,2]
[426719430,1782760246000,-2076.0,0.000284,2]
[426719414,1782760246000,-1110.6432951,0.00027809,2]
[426719402,1782760246000,-916.84992449,0.00027658,2]
[426719372,1782760246000,-396.84249185,0.00027397,2]
[426719403,1782760246000,-1052.85456039,0.00027658,2]
[426719376,1782760246000,-1476.29,0.00027397,2]
[426719378,1782760246000,-1026.86,0.00027397,2]
[426719381,1782760246000,-311.8727815,0.00027397,2]
[426719385,1782760246000,-794.72637334,0.00027397,2]
[426719384,1782760246000,-596.04478,0.00027397,2]
[426719382,1782760246000,-198.68159333,0.00027397,2]
[426719379,1782760246000,-231.1,0.00027397,2]
[426719383,1782760246000,-397.36318667,0.00027397,2]
[426719380,1782760246000,-155.93639075,0.00027397,2]
[426719391,1782760246000,-216.58458871,0.000274,7]
[426719395,1782760246000,-2010.0,0.000276,2]
[426719392,1782760246000,-1632.96,0.000274,7]
[426719400,1782760246000,-1161.04709176,0.00027658,2]
[426719393,1782760246000,-161.19607867,0.000274,2]
[426719386,1782760246000,-171.53134051,0.00027397,2]
[426719389,1782760246000,-1692.76,0.000274,7]
[426719388,1782760246000,-514.59402153,0.00027397,2]
[426719387,1782760246000,-343.06268102,0.00027397,2]
[426719396,1782760246000,-3549.0,0.000276,2]
[426719394,1782760246000,-500.0,0.000275,7]
[426719398,1782760246000,-948.43398759,0.00027658,2]
[426719401,1782760246000,-973.72167385,0.00027658,2]
[426719397,1782760246000,-241.88985642,0.00027657,2]
[426719399,1782760246000,-1081.74119985,0.00027658,2]
[426719390,1782760246000,-2570.07,0.000274,7]
[426719468,1782760247000,-150.0,0.00029,7]
[426719466,1782760247000,-250.0,0.00028964,7]
[426719477,1782760247000,-1207.35913936,0.00029071,2]
[426719467,1782760247000,-152.0,0.00028968,6]
[426719463,1782760247000,-1228.33032045,0.00028914,2]
[426719461,1782760247000,-1069.65824524,0.00028914,2]
[426719465,1782760247000,-151.83365069,0.0002892,2]
[426719459,1782760247000,-1262.03139983,0.00028914,2]
[426719462,1782760247000,-1135.17019548,0.00028914,2]
[426719470,1782760247000,-50439.98595021,0.00029,7]
[426719464,1782760247000,-1096.48767787,0.00028914,2]
[426719469,1782760247000,-1692.76,0.00029,7]
[426719475,1782760247000,-234.0,0.00029035,10]
[426719473,1782760247000,-216.58458871,0.00029,7]
[426719472,1782760247000,-302.0,0.00029,7]
[426719476,1782760247000,-578.13,0.00029042,7]
[426719474,1782760247000,-262.0,0.00029,2]
[426719479,1782760247000,-2000.0,0.000292,2]
[426719478,1782760247000,-1632.96,0.000292,7]
[426719482,1782760247000,-378.85703778,0.00029203,2]
[426719480,1782760247000,-305.90583193,0.00029203,2]
[426719487,1782760247000,-500.0,0.00029386,4]
[426719484,1782760247000,-326.64954965,0.00029315,7]
[426719457,1782760247000,-200.0,0.00028909,2]
[426719471,1782760247000,-1430.0,0.00029,2]
[426719460,1782760247000,-1136.00861949,0.00028914,2]
[426719446,1782760247000,-1071.0,0.00028674,30]
[426719455,1782760247000,-239.13127486,0.00028903,2]
[426719432,1782760247000,-151.83365069,0.00028525,2]
[426719435,1782760247000,-2570.07,0.000286,7]
[426719433,1782760247000,-57120.4787444,0.00028561,2]
[426719434,1782760247000,-303.0,0.00028588,7]
[426719438,1782760247000,-199.0,0.00028621,30]
[426719436,1782760247000,-197.0,0.00028621,30]
[426719439,1782760247000,-157.0,0.00028621,30]
[426719437,1782760247000,-901.0,0.00028621,30]
[426719440,1782760247000,-260.0,0.00028621,30]
[426719441,1782760247000,-1388.05,0.0002863,2]
[426719449,1782760247000,-176.0,0.00028684,30]
[426719458,1782760247000,-1106.50631885,0.00028914,2]
[426719452,1782760247000,-726.27,0.000287,7]
[426719488,1782760247000,-2570.07,0.000294,7]
[426719447,1782760247000,-241.0,0.00028684,30]
[426719453,1782760247000,-500.0,0.00028824,3]
[426719444,1782760247000,-353.0,0.00028674,30]
[426719442,1782760247000,-1285.23,0.0002863,2]
[426719451,1782760247000,-931.0,0.00028684,30]
[426719448,1782760247000,-390.0,0.00028684,30]
[426719450,1782760247000,-576.0,0.00028684,30]
[426719454,1782760247000,-92697.87434655,0.0002888,60]
[426719443,1782760247000,-590.700055,0.00028658,10]
[426719456,1782760247000,-599.17,0.00028904,2]
[426719445,1782760247000,-241.0,0.00028674,30]
[426719485,1782760247000,-151.83365069,0.00029316,2]
[426719431,1782760247000,-226731.6409765,0.00028493,2]
[426719483,1782760247000,-2992.52506624,0.00029262,2]
[426719519,1782760247000,-211.41,0.00029626,7]
[426719518,1782760247000,-211.41,0.00029626,2]
[426719517,1782760247000,-260.0,0.00029621,30]
[426719521,1782760247000,-211.41,0.00029626,2]
[426719529,1782760247000,-211.41,0.00029626,30]
[426719523,1782760247000,-211.41,0.00029626,30]
[426719530,1782760247000,-211.41,0.00029626,2]
[426719531,1782760247000,-211.41,0.00029626,7]
[426719532,1782760247000,-211.41,0.00029626,30]
[426719522,1782760247000,-211.41,0.00029626,7]
[426719528,1782760247000,-211.41,0.00029626,7]
[426719526,1782760247000,-211.41,0.00029626,30]
[426719524,1782760247000,-211.41,0.00029626,2]
[426719525,1782760247000,-211.41,0.00029626,7]
[426719527,1782760247000,-211.41,0.00029626,2]
[426719533,1782760247000,-211.41,0.00029626,2]
[426719536,1782760247000,-211.41,0.00029626,2]
[426719538,1782760247000,-2992.52506624,0.00029636,2]
[426719539,1782760247000,-658.01,0.00029674,7]
[426719537,1782760247000,-211.48,0.00029626,7]
[426719540,1782760247000,-353.0,0.00029674,30]
[426719481,1782760247000,-191.22957673,0.00029203,2]
[426719541,1782760247000,-241.0,0.00029674,30]
[426719534,1782760247000,-211.41,0.00029626,7]
[426719535,1782760247000,-211.41,0.00029626,30]
[426719515,1782760247000,-199.0,0.00029621,30]
[426719514,1782760247000,-901.0,0.00029621,30]
[426719520,1782760247000,-211.41,0.00029626,30]
[426719512,1782760247000,-206.47,0.00029614,7]
[426719486,1782760247000,-242.13173095,0.00029354,2]
[426719516,1782760247000,-157.0,0.00029621,30]
[426719490,1782760247000,-1929.84,0.00029463,7]
[426719493,1782760247000,-206.31,0.00029614,2]
[426719491,1782760247000,-150.0,0.00029534,2]
[426719495,1782760247000,-206.31,0.00029614,30]
[426719496,1782760247000,-206.31,0.00029614,2]
[426719494,1782760247000,-206.31,0.00029614,7]
[426719497,1782760247000,-206.31,0.00029614,7]
[426719492,1782760247000,-183.95964377,0.00029606,2]
[426719498,1782760247000,-206.31,0.00029614,30]
[426719499,1782760247000,-206.31,0.00029614,2]
[426719504,1782760247000,-206.31,0.00029614,30]
[426719489,1782760247000,-3770.00878186,0.00029445,2]
[426719501,1782760247000,-206.31,0.00029614,30]
[426719500,1782760247000,-206.31,0.00029614,7]
[426719510,1782760247000,-206.31,0.00029614,30]
[426719511,1782760247000,-206.31,0.00029614,2]
[426719503,1782760247000,-206.31,0.00029614,7]
[426719506,1782760247000,-206.31,0.00029614,7]
[426719513,1782760247000,-197.0,0.00029621,30]
[426719505,1782760247000,-206.31,0.00029614,2]
[426719508,1782760247000,-206.31,0.00029614,2]
[426719509,1782760247000,-206.31,0.00029614,7]
[426719502,1782760247000,-206.31,0.00029614,2]
[426719507,1782760247000,-206.31,0.00029614,30]
[426719570,1782760248000,-601.13,0.00029882,30]
[426719578,1782760248000,-1298.0,0.000299,5]
[426719577,1782760248000,-80720.5390396,0.000299,2]
[426719572,1782760248000,-500.4,0.00029891,2]
[426719571,1782760248000,-684.58,0.00029885,7]
[426719576,1782760248000,-250.0,0.00029894,7]
[426719579,1782760248000,-1632.96,0.000299,7]
[426719575,1782760248000,-250.0,0.00029894,7]
[426719573,1782760248000,-584.18,0.00029892,30]
[426719574,1782760248000,-250.0,0.00029894,7]
[426719569,1782760248000,-52120.5744864,0.00029874,2]
[426719584,1782760248000,-466.92151993,0.000299,2]
[426719581,1782760248000,-466.92151993,0.000299,2]
[426719583,1782760248000,-466.92151993,0.000299,2]
[426719582,1782760248000,-466.92151993,0.000299,2]
[426719586,1782760248000,-466.92151993,0.000299,2]
[426719587,1782760248000,-466.92151993,0.000299,2]
[426719585,1782760248000,-466.92151993,0.000299,2]
[426719588,1782760248000,-466.92151993,0.000299,2]
[426719591,1782760248000,-466.92151993,0.000299,2]
[426719589,1782760248000,-466.92151993,0.000299,2]
[426719567,1782760248000,-545.2,0.00029868,7]
[426719580,1782760248000,-466.92152009,0.000299,2]
[426719566,1782760248000,-234.0,0.00029857,10]
[426719542,1782760248000,-1071.0,0.00029674,30]
[426719568,1782760248000,-661.84,0.00029872,7]
[426719543,1782760248000,-241.0,0.00029684,30]
[426719545,1782760248000,-176.0,0.00029684,30]
[426719555,1782760248000,-584.18,0.0002981,7]
[426719544,1782760248000,-390.0,0.00029684,30]
[426719546,1782760248000,-576.0,0.00029684,30]
[426719551,1782760248000,-200.0,0.00029759,2]
[426719550,1782760248000,-601.13,0.00029756,30]
[426719548,1782760248000,-151.83365069,0.00029711,2]
[426719547,1782760248000,-931.0,0.00029684,30]
[426719549,1782760248000,-170.22403167,0.00029752,2]
[426719564,1782760248000,-264.31956019,0.00029856,2]
[426719552,1782760248000,-584.18,0.0002977,30]
[426719553,1782760248000,-601.13,0.00029798,7]
[426719557,1782760248000,-545.2,0.00029835,30]
[426719556,1782760248000,-500.4,0.00029821,30]
[426719560,1782760248000,-601.13,0.0002984,2]
[426719559,1782760248000,-2992.52506624,0.00029839,2]
[426719562,1782760248000,-684.58,0.00029854,30]
[426719558,1782760248000,-661.84,0.00029839,30]
[426719561,1782760248000,-584.18,0.00029851,2]
[426719565,1782760248000,-500.4,0.00029856,7]
[426719563,1782760248000,-291.00494692,0.00029856,2]
[426719554,1782760248000,-1692.76,0.000298,7]
[426719593,1782760248000,-466.92151993,0.000299,2]
[426719590,1782760248000,-466.92151993,0.000299,2]
[426719594,1782760248000,-466.92151993,0.000299,2]
[426719633,1782760248000,-22500.0,0.0003,2]
[426719623,1782760248000,-12500.0,0.0003,2]
[426719624,1782760248000,-12500.0,0.0003,2]
[426719632,1782760248000,-2499.99,0.0003,2]
[426719622,1782760248000,-22500.0,0.0003,2]
[426719625,1782760248000,-2500.0,0.0003,2]
[426719631,1782760248000,-10016.37,0.0003,2]
[426719627,1782760248000,-15000.0,0.0003,2]
[426719626,1782760248000,-25000.0,0.0003,2]
[426719629,1782760248000,-14470.9,0.0003,2]
[426719621,1782760248000,-301.51095363,0.0003,12]
[426719628,1782760248000,-12500.0,0.0003,2]
[426719638,1782760248000,-800.0,0.0003,2]
[426719636,1782760248000,-12500.0,0.0003,2]
[426719635,1782760248000,-10000.0,0.0003,2]
[426719639,1782760248000,-12952.03,0.0003,2]
[426719640,1782760248000,-12499.99,0.0003,2]
[426719637,1782760248000,-14701.54,0.0003,2]
[426719642,1782760248000,-12499.99,0.0003,2]
[426719643,1782760248000,-14351.56,0.0003,2]
[426719641,1782760248000,-10000.0,0.0003,2]
[426719592,1782760248000,-466.92151993,0.000299,2]
[426719634,1782760248000,-12499.98,0.0003,2]
[426719613,1782760248000,-250.0,0.00029964,7]
[426719630,1782760248000,-12499.99,0.0003,2]
[426719616,1782760248000,-661.84,0.00029971,7]
[426719618,1782760248000,-684.58,0.00029979,7]
[426719596,1782760248000,-466.92151993,0.000299,2]
[426719595,1782760248000,-466.92151993,0.000299,2]
[426719598,1782760248000,-466.92151993,0.000299,2]
[426719608,1782760248000,-661.84,0.00029938,30]
[426719607,1782760248000,-545.2,0.00029935,30]
[426719600,1782760248000,-545.2,0.00029902,2]
[426719597,1782760248000,-466.92151993,0.000299,2]
[426719599,1782760248000,-466.92151993,0.000299,2]
[426719601,1782760248000,-661.84,0.00029905,2]
[426719604,1782760248000,-601.13,0.00029925,7]
[426719606,1782760248000,-584.18,0.00029933,7]
[426719602,1782760248000,-560.78,0.00029914,7]
[426719603,1782760248000,-684.58,0.00029916,2]
[426719609,1782760248000,-350.0,0.00029943,14]
[426719611,1782760248000,-500.0,0.00029949,5]
[426719615,1782760248000,-545.2,0.00029969,7]
[426719620,1782760248000,-200.14986379,0.0003,2]
[426719619,1782760248000,-500.4,0.00029996,2]
[426719617,1782760248000,-584.18,0.00029973,2]
[426719612,1782760248000,-500.4,0.00029961,7]
[426719610,1782760248000,-684.58,0.00029948,30]
[426719605,1782760248000,-500.4,0.00029926,30]
[426719614,1782760248000,-601.13,0.00029967,2]
[426719684,1782760249000,-500.4,0.00030066,7]
[426719683,1782760249000,-584.18,0.00030055,7]
[426719677,1782760249000,-500.4,0.00030031,30]
[426719682,1782760249000,-601.13,0.00030052,7]
[426719681,1782760249000,-668.04,0.00030047,30]
[426719678,1782760249000,-545.2,0.00030036,30]
[426719674,1782760249000,-601.13,0.00030009,30]
[426719680,1782760249000,-684.58,0.00030042,30]
[426719673,1782760249000,-661.84,0.00030004,2]
[426719687,1782760249000,-601.13,0.00030094,2]
[426719676,1782760249000,-584.18,0.00030014,30]
[426719685,1782760249000,-545.2,0.00030069,7]
[426719701,1782760249000,-12500.0,0.00030125,2]
[426719690,1782760249000,-49705.52971958,0.000301,7]
[426719688,1782760249000,-584.18,0.00030096,2]
[426719689,1782760249000,-634.33,0.00030097,2]
[426719692,1782760249000,-195.99,0.000301,14]
[426719693,1782760249000,-2570.07,0.000301,7]
[426719691,1782760249000,-15000.0,0.000301,2]
[426719694,1782760249000,-302.0,0.000301,7]
[426719696,1782760249000,-151.83365069,0.00030107,2]
[426719698,1782760249000,-12500.0,0.00030125,2]
[426719679,1782760249000,-661.84,0.00030037,30]
[426719697,1782760249000,-22500.0,0.00030125,2]
[426719704,1782760249000,-1099.10308476,0.0003013,2]
[426719686,1782760249000,-587.39,0.00030072,7]
[426719675,1782760249000,-684.58,0.00030011,2]
[426719660,1782760249000,-390.280005,0.0003,7]
[426719671,1782760249000,-2000.0,0.0003,7]
[426719703,1782760249000,-30152.294812,0.0003013,2]
[426719644,1782760249000,-1199.3,0.0003,2]
[426719645,1782760249000,-22500.0,0.0003,2]
[426719646,1782760249000,-540027.08073869,0.0003,10]
[426719647,1782760249000,-151.0,0.0003,7]
[426719650,1782760249000,-12500.0,0.0003,2]
[426719649,1782760249000,-277.297046,0.0003,7]
[426719652,1782760249000,-216.58458871,0.0003,7]
[426719651,1782760249000,-216.58458871,0.0003,30]
[426719653,1782760249000,-198.48014,0.0003,2]
[426719656,1782760249000,-198.48014,0.0003,2]
[426719655,1782760249000,-198.48014,0.0003,2]
[426719672,1782760249000,-545.2,0.00030002,2]
[426719657,1782760249000,-198.48014,0.0003,2]
[426719658,1782760249000,-198.48013,0.0003,2]
[426719661,1782760249000,-390.280005,0.0003,7]
[426719663,1782760249000,-1443.491756,0.0003,7]
[426719662,1782760249000,-390.280005,0.0003,7]
[426719659,1782760249000,-390.280005,0.0003,7]
[426719664,1782760249000,-1443.491756,0.0003,7]
[426719669,1782760249000,-154.960337,0.0003,7]
[426719667,1782760249000,-154.960337,0.0003,7]
[426719668,1782760249000,-154.960337,0.0003,7]
[426719666,1782760249000,-1443.491756,0.0003,7]
[426719665,1782760249000,-1443.491756,0.0003,7]
[426719670,1782760249000,-154.960337,0.0003,7]
[426719654,1782760249000,-198.48014,0.0003,2]
[426719648,1782760249000,-151.0,0.0003,7]
[426719695,1782760249000,-171.65068978,0.000301,2]
[426719699,1782760249000,-7054.41,0.00030125,2]
[426719737,1782760249000,-402.18706998,0.00030136,2]
[426719734,1782760249000,-1000.19777974,0.00030136,2]
[426719738,1782760249000,-500.0,0.00030136,2]
[426719733,1782760249000,-1000.13,0.00030136,2]
[426719736,1782760249000,-502.7070817,0.00030136,2]
[426719735,1782760249000,-500.0,0.00030136,2]
[426719739,1782760249000,-500.0,0.00030136,2]
[426719743,1782760249000,-500.0,0.00030136,2]
[426719741,1782760249000,-500.0,0.00030136,2]
[426719745,1782760249000,-500.0,0.00030136,2]
[426719744,1782760249000,-500.0,0.00030136,2]
[426719747,1782760249000,-500.0,0.00030136,2]
[426719732,1782760249000,-1000.13,0.00030136,2]
[426719742,1782760249000,-500.0,0.00030136,2]
[426719750,1782760249000,-500.0,0.00030136,2]
[426719749,1782760249000,-500.0,0.00030136,2]
[426719746,1782760249000,-500.0,0.00030136,2]
[426719748,1782760249000,-500.0,0.00030136,2]
[426719752,1782760249000,-500.0,0.00030136,2]
[426719753,1782760249000,-500.0,0.00030136,2]
[426719754,1782760249000,-500.0,0.00030136,2]
[426719758,1782760249000,-500.0,0.00030136,2]
[426719756,1782760249000,-500.0,0.00030136,2]
[426719755,1782760249000,-500.0,0.00030136,2]
[426719757,1782760249000,-500.0,0.00030136,2]
[426719700,1782760249000,-17605.66,0.00030125,2]
[426719751,1782760249000,-500.0,0.00030136,2]
[426719731,1782760249000,-1000.13,0.00030136,2]
[426719759,1782760249000,-500.0,0.00030136,2]
[426719740,1782760249000,-500.0,0.00030136,2]
[426719729,1782760249000,-1000.13,0.00030136,2]
[426719702,1782760249000,-14182.49937388,0.0003013,2]
[426719706,1782760249000,-206.4088942,0.0003013,2]
[426719708,1782760249000,-303.77103101,0.0003013,2]
[426719705,1782760249000,-649.06981493,0.0003013,2]
[426719715,1782760249000,-1000.13,0.00030136,2]
[426719707,1782760249000,-482.27184879,0.0003013,2]
[426719711,1782760249000,-1000.13,0.00030136,2]
[426719709,1782760249000,-1926.37308037,0.0003013,2]
[426719710,1782760249000,-171.87762964,0.0003013,20]
[426719712,1782760249000,-1000.13,0.00030136,2]
[426719714,1782760249000,-1000.13,0.00030136,2]
[426719713,1782760249000,-1000.13,0.00030136,2]
[426719716,1782760249000,-1000.13,0.00030136,2]
[426719720,1782760249000,-1000.13,0.00030136,2]
[426719717,1782760249000,-1000.13,0.00030136,2]
[426719723,1782760249000,-1000.13,0.00030136,2]
[426719722,1782760249000,-1000.13,0.00030136,2]
[426719728,1782760249000,-1000.13,0.00030136,2]
[426719718,1782760249000,-1000.13,0.00030136,2]
[426719726,1782760249000,-1000.13,0.00030136,2]
[426719719,1782760249000,-1000.13,0.00030136,2]
[426719727,1782760249000,-1000.13,0.00030136,2]
[426719724,1782760249000,-1000.13,0.00030136,2]
[426719721,1782760249000,-1000.13,0.00030136,2]
[426719730,1782760249000,-1000.13,0.00030136,2]
[426719725,1782760249000,-1000.13,0.00030136,2]
[426719788,1782760250000,-500.0,0.00030136,15]
[426719798,1782760250000,-152.5325826,0.00030137,2]
[426719787,1782760250000,-500.0,0.00030136,15]
[426719793,1782760250000,-500.0,0.00030136,15]
[426719796,1782760250000,-231.1,0.00030137,2]
[426719783,1782760250000,-300.0,0.00030136,2]
[426719791,1782760250000,-500.0,0.00030136,15]
[426719794,1782760250000,-574.24997663,0.00030136,15]
[426719795,1782760250000,-1001.36237752,0.00030137,2]
[426719797,1782760250000,-238.44251189,0.00030137,2]
[426719789,1782760250000,-500.0,0.00030136,15]
[426719801,1782760250000,-398.19411931,0.00030137,2]
[426719790,1782760250000,-500.0,0.00030136,15]
[426719799,1782760250000,-1000.0,0.00030137,30]
[426719804,1782760250000,-1000.0,0.00030137,2]
[426719800,1782760250000,-199.09705965,0.00030137,2]
[426719802,1782760250000,-597.29117896,0.00030137,2]
[426719803,1782760250000,-500.0,0.00030137,3]
[426719806,1782760250000,-526.65,0.00030137,30]
[426719805,1782760250000,-150.0,0.00030137,2]
[426719782,1782760250000,-300.0,0.00030136,2]
[426719810,1782760250000,-3315.40782047,0.0003014,4]
[426719792,1782760250000,-500.0,0.00030136,15]
[426719781,1782760250000,-300.0,0.00030136,2]
[426719770,1782760250000,-300.0,0.00030136,2]
[426719777,1782760250000,-300.0,0.00030136,2]
[426719807,1782760250000,-3315.40782047,0.0003014,4]
[426719761,1782760250000,-500.0,0.00030136,2]
[426719760,1782760250000,-500.0,0.00030136,2]
[426719763,1782760250000,-500.0,0.00030136,2]
[426719773,1782760250000,-300.0,0.00030136,2]
[426719762,1782760250000,-526.60827864,0.00030136,2]
[426719765,1782760250000,-500.0,0.00030136,2]
[426719764,1782760250000,-500.0,0.00030136,2]
[426719766,1782760250000,-500.0,0.00030136,2]
[426719772,1782760250000,-300.0,0.00030136,2]
[426719784,1782760250000,-185.67251033,0.00030136,2]
[426719769,1782760250000,-307.41109739,0.00030136,2]
[426719768,1782760250000,-500.0,0.00030136,2]
[426719771,1782760250000,-300.0,0.00030136,2]
[426719776,1782760250000,-300.0,0.00030136,2]
[426719774,1782760250000,-300.0,0.00030136,2]
[426719779,1782760250000,-300.0,0.00030136,2]
[426719778,1782760250000,-300.0,0.00030136,2]
[426719780,1782760250000,-300.0,0.00030136,2]
[426719775,1782760250000,-300.0,0.00030136,2]
[426719785,1782760250000,-500.0,0.00030136,15]
[426719786,1782760250000,-500.0,0.00030136,15]
[426719767,1782760250000,-500.0,0.00030136,2]
[426719809,1782760250000,-3315.40782047,0.0003014,4]
[426719811,1782760250000,-3315.40782047,0.0003014,4]
[426719808,1782760250000,-3315.40782047,0.0003014,4]
[426719840,1782760250000,-7735.9515811,0.0003014,4]
[426719837,1782760250000,-7735.9515811,0.0003014,4]
[426719839,1782760250000,-7735.9515811,0.0003014,4]
[426719841,1782760250000,-7735.9515811,0.0003014,4]
[426719842,1782760250000,-7735.9515811,0.0003014,4]
[426719846,1782760250000,-7735.95,0.0003014,4]
[426719845,1782760250000,-7735.9515811,0.0003014,4]
[426719847,1782760250000,-757.77236723,0.0003014,4]
[426719843,1782760250000,-7735.9515811,0.0003014,4]
[426719844,1782760250000,-7735.9515811,0.0003014,4]
[426719838,1782760250000,-7735.9515811,0.0003014,4]
[426719850,1782760250000,-757.77236723,0.0003014,4]
[426719849,1782760250000,-757.77236723,0.0003014,4]
[426719848,1782760250000,-757.77236723,0.0003014,4]
[426719852,1782760250000,-757.77236723,0.0003014,4]
[426719853,1782760250000,-757.77236723,0.0003014,4]
[426719856,1782760250000,-757.77236723,0.0003014,4]
[426719855,1782760250000,-757.77236723,0.0003014,4]
[426719857,1782760250000,-757.77236723,0.0003014,4]
[426719860,1782760250000,-757.77236723,0.0003014,4]
[426719859,1782760250000,-757.77236723,0.0003014,4]
[426719858,1782760250000,-757.77236723,0.0003014,4]
[426719851,1782760250000,-757.77236723,0.0003014,4]
[426719826,1782760250000,-3315.4,0.0003014,4]
[426719854,1782760250000,-757.77236723,0.0003014,4]
[426719832,1782760250000,-7735.9515811,0.0003014,4]
[426719813,1782760250000,-3315.40782047,0.0003014,4]
[426719829,1782760250000,-7735.9515811,0.0003014,4]
[426719821,1782760250000,-3315.40782047,0.0003014,4]
[426719822,1782760250000,-3315.40782047,0.0003014,4]
[426719812,1782760250000,-3315.40782047,0.0003014,4]
[426719823,1782760250000,-3315.40782047,0.0003014,4]
[426719818,1782760250000,-3315.40782047,0.0003014,4]
[426719816,1782760250000,-3315.40782047,0.0003014,4]
[426719819,1782760250000,-3315.40782047,0.0003014,4]
[426719820,1782760250000,-3315.40782047,0.0003014,4]
[426719817,1782760250000,-3315.40782047,0.0003014,4]
[426719814,1782760250000,-3315.40782047,0.0003014,4]